Cogmind - Beta 15 @@@ ROGUE MODE // 2025.10.11 @ 22:36:44 Player: DietSnapple Result: Destroyed by 6X-ML3(R) with Subdweller Machine Gun Performance ------------- Evolutions (0) 0 Regions Visited (3) 600 Robots Destroyed (25) 125 Value Destroyed (674) 674 Prototype IDs (0) 0 Alien Tech Used (0) 0 Bonus (0) 0 TOTAL SCORE: 1399 Bonus ------- None Cogmind --------- Core Integrity 0/250 Matter 261/300 Energy 100/100 System Corruption 0% Temperature Cool (9) Movement Rolling (120) Ox1 Location -10/Subcaves Parts ------- > --- POWER (1) -------- (None) > --- PROPULSION (2) --- Subdweller Monowheel > --- UTILITY (2) ------ Large Storage Unit > --- WEAPON (2) ------- Subdweller Beam Cannon > --- INVENTORY (15) --- Light Ion Engine Light Treads Compact Wheel Compact Wheel Small Storage Unit Small Laser Assault Rifle Battle Rifle Battle Rifle Peak State ------------ > --- POWER ------------ Light Nuclear Core > --- PROPULSION ------- Subdweller Monowheel Subdweller Monowheel > --- UTILITY ---------- Large Storage Unit > --- WEAPON ----------- Subdweller Beam Cannon Mining Claw > --- INVENTORY -------- Light Ion Engine Light Treads Compact Wheel Compact Wheel Small Storage Unit Small Laser Assault Rifle Battle Rifle Battle Rifle [Rating: 12] Favorites ----------- Power Light Ion Engine Engine Light Ion Engine Power Core Light Nuclear Core Propulsion Light Treads Treads Light Treads Wheel Subdweller Monowheel Utility Large Storage Unit Storage Large Storage Unit Weapon Light Assault Rifle Energy Cannon Subdweller Beam Cannon Ballistic Gun Light Assault Rifle Launcher Grenade Launcher Slashing Weapon Mining Claw Build | -11 -10 -10 -10 ------- Run | Yrd Mat Min Sub Slots Evolved . | . . . . Power . | . . . . Propulsion . | . . . . Utility . | . . . . Weapon . | . . . . Parts Attached 17 | 6 3 3 5 Power 3 | 1 1 1 . Engine 2 | 1 1 . . Core 1 | . . 1 . Reactor . | . . . . Propulsion 7 | 2 1 2 2 Treads 3 | 2 1 . . Leg . | . . . . Wheel 4 | . . 2 2 Hover . | . . . . Flight . | . . . . Utility 2 | 1 1 . . Device . | . . . . Storage 2 | 1 1 . . Processor . | . . . . Hackware . | . . . . Protection . | . . . . Artifact . | . . . . Weapon 5 | 2 . . 3 Energy Gun . | . . . . Energy Cannon 1 | . . . 1 Ballistic Gun 2 | 2 . . . Ballistic Cannon . | . . . . Launcher 1 | . . . 1 Special Weapon . | . . . . Impact Weapon . | . . . . Slashing Weapon 1 | . . . 1 Piercing Weapon . | . . . . Special Melee Weapon . | . . . . Unidentified Prototypes . | . . . . Parts Lost 8 | . 1 2 5 Power 2 | . 1 . 1 Propulsion 3 | . . 2 1 Utility . | . . . . Weapon 3 | . . . 3 Highest Loss Streak 3 | . 1 1 3 To Critical Strikes . | . . . . Average Backups 6 | 2 5 6 8 Power . | . . . 1 Propulsion 2 | 1 2 2 2 Utility . | . . 1 1 Weapon 2 | . 1 2 3 Tool/Special . | . . . . Unused Backups 3 | . . . 3 Power . | . . . . Propulsion . | . . . . Utility . | . . . . Weapon 3 | . . . 3 Tool/Special . | . . . . Average Slot Usage (%) 82 | . 83 84 77 Engine 9 | . 12 10 . Core 4 | . . 3 14 Treads 19 | . 28 20 . Wheel 7 | . . 7 28 Storage 14 | . 14 14 14 Ballistic Gun 23 | . 28 28 4 Launcher 2 | . . . 10 Peak Build Rating 12 | 6 7 8 12 Average Rating 6 | 4 5 6 9 On Entrance 5 | . 6 6 8 Naked Turns . | . . . . Heaviest Build 35 | 13 33 28 35 Greatest Support 40 | 40 40 40 40 Greatest Overweight (x) 1 | . . 1 1 Average Overweight (x) . | . . . . Largest Inventory Capacity 15 | 8 15 15 15 Average Capacity 13 | 7 13 15 15 Most Carried 10 | 4 7 8 10 Average Carried 6 | 2 5 6 8 Final Capacity 15 | 8 15 15 15 Final Carried 9 | 4 6 6 9 Class Distribution -------------------- 100% | Mutant Dominant Class ---------------- Mutant | -10/Materials Mutant | -10/Mines Mutant | -10/Subcaves Resources | -11 -10 -10 -10 ----------- Run | Yrd Mat Min Sub Matter Collected 623 | 252 163 142 66 Remotely . | . . . . Salvage Created 756 | . 392 227 137 Parts 49 | . 30 11 8 Haulers Intercepted 1 | . 1 . . Recyclers Shooed . | . . . . Parts Field Recycled . | . . . . Retrieved Matter . | . . . . Parts Self-Destructed 6 | . . . 6 Prevented . | . . . . Kills | -11 -10 -10 -10 ------- Run | Yrd Mat Min Sub Combat Hostiles Destroyed 21 | . 9 7 5 Guns 16 | . 9 7 . Cannons 1 | . . . 1 AOE 4 | . . . 4 Classes Destroyed 7 | . 6 . 1 Worker 1 | . 1 . . Hauler 1 | . 1 . . Operator 1 | . 1 . . Watcher 1 | . 1 . . Swarmer 6 | . 3 3 . Grunt 10 | . 6 4 . Subdweller 5 | . . . 5 Best Kill Streak 4 | . 3 3 4 Combat Bots Only 4 | . 3 3 4 Max Kills in Single Turn 2 | . 2 1 1 Gunslinging 1 | . 1 . . Exploded 1 | . . . 1 Melee . | . . . . Uniques/NPCs Destroyed . | . . . . Combat | -11 -10 -10 -10 -------- Run | Yrd Mat Min Sub Hostile Shots Fired 111 | . 64 29 18 Missed 25 | . 14 5 6 Hits 86 | . 50 24 12 Projectile 86 | . 50 24 12 AOE 3 | . . . 3 Critical Strikes 2 | . 1 . 1 Damage Taken 1201 | . 540 304 357 Core 264 | . 128 51 85 Absorbed by Shields . | . . . . Core Remaining (%) 100 | 100 . . . Volleys Fired 74 | . 47 17 10 Largest 2 | . 2 2 1 Hottest 80 | . 40 40 80 Shots Fired 138 | . 94 34 10 Gun 128 | . 94 34 . Cannon 2 | . . . 2 Launcher 8 | . . . 8 Special . | . . . . Kinetic 128 | . 94 34 . Thermal 2 | . . . 2 Explosive 8 | . . . 8 Electromagnetic . | . . . . Robot Hit Streak 15 | . 10 11 15 Robot Miss Streak 4 | . 4 1 . Penetration Max . | . . . . Secondary Targets 3 | . 2 1 . Max Gunslinging Chain 1 | . 1 1 . Shots Hit Robots 95 | . 66 25 4 Core Hits 44 | . 24 13 7 Critical Kills . | . . . . Critical Parts Destroyed 1 | . 1 . . Critical Strikes 1 | . 1 . . Destroy 1 | . 1 . . Melee Attacks 1 | . . . 1 Impact . | . . . . Slashing 1 | . . . 1 Piercing . | . . . . Sneak Attacks . | . . . . Combat Hostiles . | . . . . Follow-up Attacks . | . . . . Damage Inflicted 1509 | . 719 274 516 Guns 973 | . 702 271 . Cannons 56 | . . . 56 Explosions 460 | . . . 460 Melee . | . . . . Ramming 20 | . 17 3 . Kinetic 973 | . 702 271 . Thermal 56 | . . . 56 Explosive 460 | . . . 460 Electromagnetic . | . . . . Impact . | . . . . Slashing . | . . . . Piercing . | . . . . Highest Corruption . | . . . . Average Corruption . | . . . . Corruption Purged . | . . . . Corruption Blocked . | . . . . Overload Shots . | . . . . Overflow Damage . | . . . . Projectiles . | . . . . Explosions . | . . . . Melee . | . . . . Knockbacks . | . . . . Impact . | . . . . Kinetic . | . . . . Secondary . | . . . . Self-Inflicted Damage 16 | . . . 16 Shots 2 | . . . 2 Rammed 4 | . 2 2 . Targets Rammed 5 | . 3 2 . Kicked . | . . . . Crushed 1 | . 1 . . Highest Temperature 25 | . 12 25 8 Average Temperature 7 | . 6 9 5 Received Heat Transfer 378 | . 207 144 27 Siege Activations . | . . . . Martial Activations . | . . . . Shielding Activations . | . . . . Robots Disrupted . | . . . . Combat Hostiles . | . . . . Robots Corrupted . | . . . . Combat Hostiles . | . . . . Parts Fried . | . . . . Impact Corruptions . | . . . . Robots Melted . | . . . . Combat Hostiles . | . . . . Parts Melted . | . . . . Heat Transferred 74 | . . . 74 Parts Sabotaged . | . . . . Parts Stolen . | . . . . Parts Stripped . | . . . . Power Chain Reactions . | . . . . Alert | -11 -10 -10 -10 ------- Run | Yrd Mat Min Sub Maximum Alert Level . | . . . . Low Security (%) 100 | 100 100 100 . Level 1 . | . . . . Level 2 . | . . . . Level 3 . | . . . . Level 4 . | . . . . Level 5 . | . . . . High Security . | . . . . Max Security . | . . . . Peak Influence 90 | . 85 90 . Initial . | . . . . Average 18 | . 20 17 . Influence Increases 454 | . 269 185 . Destroy 0b10 Robot/C 320 | . 180 140 . Destroy 0b10 Robot/NC 20 | . 20 . . Destroy Leader 84 | . 54 30 . Partial Spotted 15 | . 15 . . Lose Combat Pursuer 15 | . . 15 . Influence Decreases 454 | . 269 185 . Time Decay 434 | . 259 175 . Lost Part 20 | . 10 10 . Squads Dispatched 4 | . 4 . . Investigation 1 | . 1 . . Extermination . | . . . . Reinforcement 3 | . 3 . . Assault . | . . . . Garrison . | . . . . Intercept . | . . . . Searches Triggered . | . . . . Construction Impeded . | . . . . Haulers Reinforced . | . . . . Active Scanning Responses . | . . . . Cargo Convoy Interrupts . | . . . . Stealth | -11 -10 -10 -10 --------- Run | Yrd Mat Min Sub Distress Signals 1 | . 1 . . Communications Jammed . | . . . . Distress Signals . | . . . . Times Spotted 43 | . 24 8 11 Peak Tracking Total 5 | . 3 2 5 Tactical Retreats 1 | . . 1 . Traps | -11 -10 -10 -10 ------- Run | Yrd Mat Min Sub Traps Triggered 1 | . 1 . . Indirectly . | . . . . Trap Hack Attempts . | . . . . Triggered . | . . . . Disarmed . | . . . . Reprogrammed . | . . . . Reused . | . . . . Traps Extracted . | . . . . Installed . | . . . . Triggered . | . . . . Machines | -11 -10 -10 -10 ---------- Run | Yrd Mat Min Sub Machines Disabled . | . . . . Max in Single Turn . | . . . . Machines Repaired . | . . . . Machines Dismantled . | . . . . Machines Sabotaged . | . . . . Overloaded Fab Kills . | . . . . Hacking | -11 -10 -10 -10 --------- Run | Yrd Mat Min Sub Machines Accessed 2 | . 1 . 1 Terminals 1 | . 1 . . Fabricators . | . . . . Repair Stations . | . . . . Recycling Units . | . . . . Scanalyzers . | . . . . Garrison Access . | . . . . Total Hacks 7 | . 2 . 5 Successful 5 | . . . 5 Failed 2 | . 2 . . Catastrophic 1 | . 1 . . Database Lockouts . | . . . . Manual 2 | . 2 . . Terminals 2 | . 2 . . Fabricators . | . . . . Repair Stations . | . . . . Recycling Units . | . . . . Scanalyzers . | . . . . Garrison Access . | . . . . Terminal Hacks 5 | . . . 5 Record 5 | . . . 5 Fabricator Hacks . | . . . . Repair Station Hacks . | . . . . Recycling Unit Hacks . | . . . . Scanalyzer . | . . . . Garrison Access Hacks . | . . . . Unauthorized Hacks . | . . . . Terminals . | . . . . Fabricators . | . . . . Repair Stations . | . . . . Recycling Units . | . . . . Scanalyzers . | . . . . Garrison Access . | . . . . Data Cores Recovered . | . . . . Used . | . . . . Hacking Detections 1 | . 1 . . Full Trace Events . | . . . . Feedback Events . | . . . . Feedback Blocked . | . . . . Robot Schematics Acquired . | . . . . Robots Built . | . . . . Authchips . | . . . . Time . | . . . . Total Robot Build Rating . | . . . . Part Schematics Acquired . | . . . . Parts Built . | . . . . Authchips . | . . . . Time . | . . . . Total Part Build Rating . | . . . . Parts Repaired . | . . . . Time . | . . . . Parts Recycled . | . . . . Recycled Matter . | . . . . Retrieved Matter . | . . . . Retrieved Components . | . . . . Parts Scanalyzed . | . . . . Part Schematics Acquired . | . . . . Parts Damaged . | . . . . Bothacking | -11 -10 -10 -10 ------------ Run | Yrd Mat Min Sub Used RIF Installer . | . . . . Robots Hacked . | . . . . Non-combat . | . . . . Combat . | . . . . Robot Hacks Applied . | . . . . Relay Couplers Released . | . . . . Fabnet Peak Effective % . | . . . . Robots Rewired . | . . . . Allies Hacked . | . . . . Hacks Repelled . | . . . . Allies | -11 -10 -10 -10 -------- Run | Yrd Mat Min Sub Total Allies . | . . . . Largest Group . | . . . . Highest-Rated Group . | . . . . Highest-Rated Ally . | . . . . Total Orders . | . . . . Ally Attacks . | . . . . Total Damage . | . . . . Kills . | . . . . Allies Corrupted . | . . . . Allies Melted . | . . . . Intel | -11 -10 -10 -10 ------- Run | Yrd Mat Min Sub Active Infowar (turns) . | . . . . Robot Analysis Total . | . . . . Derelict Logs Recovered 3 | . . 3 . Drone Launches . | . . . . Drone Recoveries . | . . . . Exploration | -11 -10 -10 -10 ------------- Run | Yrd Mat Min Sub Turns Passed 2748 | 123 1292 783 550 Spaces Moved 1771 | 74 707 513 477 Core 7 | 7 . . . Treads 1087 | 67 707 313 . Legs . | . . . . Wheels 677 | . . 200 477 Hover . | . . . . Flight . | . . . . Fastest Speed 50 | 50 160 100 100 Average Speed 139 | 149 160 138 107 Slowest Speed 240 | 160 160 240 120 Overloaded Moves . | . . . . Propulsion Burnouts . | . . . . Robots Hopped . | . . . . Potential Cave-ins . | . . . . Cave-ins Triggered . | . . . . Exploration Rate (%) 51 | 5 86 81 33 Regions Visited 3 Branch Regions 2 Pre-discovered Areas 3 | . . 2 1 Known Exits Taken . | . . . . Unknown Exits Taken 3 | 1 1 1 . Scrap Searched 1 | . . 1 . Spaces Dug . | . . . . Terrain Destroyed 29 | . . . 29 Melee . | . . . . Projectile . | . . . . AOE 29 | . . . 29 Terrain Rammed . | . . . . Walls Destroyed . | . . . . Machines Disabled . | . . . . Actions | -11 -10 -10 -10 --------- Run | Yrd Mat Min Sub Total 1917 | 83 782 553 499 Wait 39 | . 20 18 1 Move 1768 | 73 706 512 477 Hop . | . . . . Pick Up 9 | 4 2 1 2 Fast Attach 7 | 6 . . 1 Attach 5 | . 2 2 1 Detach 1 | . 1 . . Swap 5 | . 1 1 3 Drop . | . . . . Fire 74 | . 47 17 10 Melee 1 | . . . 1 Ram 1 | . . 1 . Kick . | . . . . Crush 4 | . 3 1 . Escape Stasis . | . . . . Rewire 3 | . . . 3 Trap . | . . . . Miscellaneous . | . . . . Route ------- -11/Scrapyard -10/Materials (discovered 5 exits: [*Mat x3] / [*Min] / *Sub) -10/Mines (discovered 3 exits: [*Mat x2] / *Sub) -10/Subcaves (discovered 3 exits: Mat x2 / Rec) History --------- Turn | Location | Event 38 | -11/Scrapyard | Discovered new exit (range 16) 124 | -11/Scrapyard | Entered Materials 315 | -10/Materials | Build established: Mutant 711 | -10/Materials | Discovered new exit (range 8) 863 | -10/Materials | Discovered new exit (range 9) 910 | -10/Materials | Core integrity fell below 50% 1169 | -10/Materials | Discovered new exit (range 12) 1262 | -10/Materials | Discovered new exit (range 14) 1332 | -10/Materials | Discovered new exit (range 14) 1416 | -10/Materials | Entered Mines 1472 | -10/Mines | Discovered new exit (range 9) 1580 | -10/Mines | Discovered new exit (range 9) 1707 | -10/Mines | YI-UF0 nonchalantly dropped a Grenade Launcher on the ground 1870 | -10/Mines | Learned Materials stockpile data 1912 | -10/Mines | Learned location of Storage (-8) 2159 | -10/Mines | Discovered new exit (range 9) 2199 | -10/Mines | Entered Subcaves 2298 | -10/Subcaves | Ambushed by Subdwellers from Twisted Machinery 2311 | -10/Subcaves | Ambushed by Subdwellers from Twisted Machinery 2487 | -10/Subcaves | Learned location of Zion (-7) 2487 | -10/Subcaves | Met a Zionite searching for "candidates" 2668 | -10/Subcaves | Visited Clippyterm 2672 | -10/Subcaves | Identified exit to Recycling 2672 | -10/Subcaves | Identified exit to Materials 2672 | -10/Subcaves | Learned Factory trap positions 2694 | -10/Subcaves | Core integrity fell below 20% 2746 | -10/Subcaves | Ambushed by Subdweller buried in earth 2746 | -10/Subcaves | Ambushed by Subdweller buried in earth 2749 | -10/Subcaves | Destroyed by 6X-ML3(R) with Subdweller Machine Gun Last Messages --------------- It looks like you're in search of a way out of here, would you like help? Loading 3 Subcaves exits... >>Record! "Banana Peels" It looks like you're afraid of the consquences of stepping on the wrong spot, would you like help? Data stored: Factory trap records. >>Record! "Letterhead" It looks like you're writing a letter, sorry I don't know how to do that. >>Record! "LRC-V1" It looks like you're REDACTED, I can suggest REDACTED and REDACTED. Also definitely avoid REDACTED. 02692_ V5-WHJ(R): "ARGHSUB!" 02693_ Grenade Launcher destroyed. 02695_ The unstable cave ceiling collapses. 02718_ Acquired Sub. Beam Cannon. 02736_ S-10 Pest destroyed. 02743_ Mining Claw destroyed. 02745_ JK-MEA(R) destroyed. 02746_ Sub. Monowheel destroyed. 02747_ R0-IO3(R): "ARGHSUB!" 02747_ 6X-ML3(R): "ARGHSUB!" 02749_ Lgt. Nuclear Core destroyed. Map ----- +----------------------------------------------------+ | #??##????????????????????????????????????????????? | | #?? ##???????????????????????????????????????????? | | #?# #???????????????????????????????????????????? | | ## #?? ##??????????????????????????????????????? | | # # #??????????????????????????????????????? | | #?????????????????????????????????????? | | ##### #?????????????????????????????????????? | | ##??#??????????????????????????????????????????? | | #### #? ???????????????????????????????????????? | | #?????????????????????????????????????? | | # #?????????????????????????????????????? | | # # # #?????????????????????????????????????? | | #####" "#?????????????????????????????????????? | | #??# " "#?????????????????????????????????????? | | ##?# " "#?????????????????????????????????????? | | %#?#"" "#?????????????????????????????????????? | | ###" ""#?????????????????????????????????????? | | ## "#?????????????????????????????????????? | | #"#???##??????########??????????????????? | | # "#??## ???### ; #??????????????????? | | #" ##??# #??# ##?????????????????? | | #" "#??# #??# #???????##????????? | | ?#" "##### ???# R #???### ###??